bitfinex/quotes_SOLUSD_20241022
["timestamp","ask_amount","ask_price","bid_price","bid_amount"]
[1729624240649,5.9333,168.54,168.49,33.86017108]
[1729624242754,0.721189,168.59,168.53,33.86017108]
[1729624243073,0.721189,168.59,168.56,33.86017108]
[1729624243480,0.721189,168.59,168.57,33.86017108]
[1729624243973,0.721189,168.59,168.58,33.86017108]
[1729624244273,0.721189,168.59,168.58,58.82329865]
[1729624244974,0.721189,168.59,168.58,57.63705508]
[1729624246258,0.721189,168.59,168.58,33.86017108]
[1729624247472,0.721189,168.59,168.58,57.63705508]
[1729624248957,0.721189,168.59,168.58,127.63705508]
[1729624250582,0.721189,168.59,168.58,33.86017108]
[1729624254183,0.721189,168.59,168.57,33.86017108]
[1729624256280,0.721189,168.59,168.58,33.86017108]
[1729624260480,0.721189,168.59,168.57,33.86017108]
[1729624260668,0.721189,168.59,168.58,33.86017108]
[1729624263205,0.721189,168.59,168.54,1.18598728]
[1729624263500,0.721189,168.59,168.55,33.86017108]
[1729624264298,0.721189,168.59,168.56,33.86017108]
[1729624265097,0.721189,168.59,168.58,33.86017108]
[1729624267685,0.721189,168.59,168.57,33.86017108]
[1729624268591,0.721189,168.59,168.56,33.86017108]
[1729624270004,0.721189,168.59,168.57,33.86017108]
[1729624270693,0.721189,168.59,168.58,33.86017108]
[1729624271995,0.721189,168.59,168.57,33.86017108]
[1729624273978,0.721189,168.59,168.58,33.86017108]
[1729624274607,0.721189,168.59,168.58,57.63705508]
[1729624275908,0.721189,168.59,168.58,77.63705508]
[1729624280002,0.721189,168.59,168.58,147.63705508]
[1729624281689,0.721189,168.59,168.58,113.776884]
[1729624281890,0.721189,168.59,168.58,147.63705508]
[1729624282708,0.721189,168.59,168.58,77.63705508]
[1729624284993,0.721189,168.59,168.58,57.63705508]
[1729624286289,0.721189,168.59,168.58,45.39793638]
[1729624294506,0.721189,168.59,168.58,115.39793638]
[1729624294705,0.721189,168.59,168.58,135.39793638]
[1729624294903,16.4366,168.65,168.58,135.39793638]
[1729624294904,16.4366,168.65,168.6,70.0]
[1729624295097,16.4366,168.65,168.64,21.62105238]
[1729624299427,15.5509,168.71,168.64,21.62105238]
[1729624299732,15.5509,168.71,168.66,21.62105238]
[1729624301604,15.5509,168.71,168.67,21.62105238]
[1729624302324,15.5509,168.71,168.66,21.62105238]
[1729624303217,15.5509,168.71,168.67,21.62105238]
[1729624304411,15.5509,168.71,168.66,21.62105238]
[1729624304613,15.5509,168.71,168.59,0.1]
[1729624304614,15.5509,168.71,168.59,20.0]
[1729624304806,15.5509,168.71,168.63,21.62105238]
[1729624305709,15.5509,168.71,168.64,21.62105238]
[1729624307107,15.5509,168.71,168.6,23.776884]
[1729624307428,15.5509,168.71,168.63,21.62105238]
[1729624307631,15.5509,168.71,168.64,21.62105238]
[1729624309323,15.5509,168.71,168.65,21.62105238]
[1729624312838,15.5509,168.71,168.6,23.776884]
[1729624313018,15.5509,168.71,168.64,21.62105238]
[1729624313830,15.5509,168.71,168.6,23.776884]
[1729624314136,15.5509,168.71,168.64,21.62105238]
[1729624314548,15.5509,168.71,168.65,21.62105238]
[1729624320832,15.5509,168.71,168.64,21.62105238]
[1729624321035,15.5509,168.71,168.66,21.62105238]
[1729624321417,15.5509,168.71,168.67,21.62105238]
[1729624321728,15.5509,168.71,168.68,21.62105238]
[1729624322038,15.5509,168.71,168.67,21.62105238]
[1729624325336,15.5509,168.71,168.69,21.62105238]
[1729624325745,15.5509,168.71,168.7,21.62105238]
[1729624326239,15.5509,168.71,168.69,21.62105238]
[1729624326541,15.961289,168.75,168.7,21.62105238]
[1729624326917,15.961289,168.75,168.72,21.62105238]
[1729624327136,15.961289,168.75,168.74,21.62105238]
[1729624327341,0.621189,168.75,168.74,21.62105238]
[1729624328742,0.621189,168.75,168.74,45.39793638]
[1729624329249,0.621189,168.75,168.71,20.0]
[1729624329420,0.621189,168.75,168.68,3.0614]
[1729624329620,0.621189,168.75,168.72,21.62105238]
[1729624331030,16.5928,168.74,168.7,21.62105238]
[1729624331231,16.5928,168.74,168.66,6.3908]
[1729624331535,16.5928,168.74,168.69,21.62105238]
[1729624332437,16.5928,168.74,168.71,21.62105238]
[1729624333438,16.5928,168.74,168.7,21.62105238]
[1729624335328,16.5928,168.74,168.67,43.776884]
[1729624335529,16.5928,168.74,168.7,21.62105238]
[1729624337146,16.5928,168.74,168.71,21.62105238]
[1729624337540,16.5928,168.74,168.7,21.62105238]
[1729624339026,16.5928,168.74,168.69,21.62105238]
[1729624339431,16.5928,168.74,168.7,21.62105238]
[1729624341732,0.621189,168.75,168.71,23.776884]
[1729624341935,0.621189,168.75,168.7,21.62105238]
[1729624344732,0.621189,168.75,168.71,21.62105238]
[1729624345859,0.621189,168.75,168.66,76.3908]
[1729624345860,0.621189,168.75,168.7,21.62105238]
[1729624347049,0.621189,168.75,168.69,21.62105238]
[1729624351163,0.621189,168.75,168.7,21.62105238]
[1729624356763,0.621189,168.75,168.71,21.62105238]
[1729624358053,0.621189,168.75,168.67,43.776884]
[1729624358252,0.621189,168.75,168.71,21.62105238]
[1729624359471,0.621189,168.75,168.7,21.62105238]
[1729624361471,0.621189,168.75,168.71,21.62105238]
[1729624369469,0.621189,168.75,168.72,21.62105238]
[1729624369858,0.621189,168.75,168.67,54.13491093]
[1729624369859,0.621189,168.75,168.67,30.35802693]
[1729624370061,0.621189,168.75,168.67,28.11475397]
[1729624370264,0.621189,168.75,168.69,21.62105238]
[1729624371171,0.621189,168.75,168.67,28.11475397]
[1729624371370,6.547189,168.75,168.67,29.73580635]
[1729624371557,6.547189,168.75,168.67,8.11475397]
[1729624371558,0.621189,168.75,168.67,8.11475397]
[1729624371758,16.2253,168.73,168.67,21.62105238]
[1729624375069,16.2253,168.73,168.64,14.2878817]
[1729624375070,16.2253,168.73,168.65,23.776884]
[1729624375274,16.2253,168.73,168.64,35.90893408]
[1729624375475,5.9269,168.72,168.64,14.2878817]
[1729624375676,5.9276,168.71,168.59,71.03092407]
[1729624375887,5.9276,168.71,168.63,21.62105238]
[1729624376470,15.5184,168.69,168.6,6.17384]
[1729624376668,5.9286,168.68,168.61,21.62105238]
[1729624376976,5.9283,168.68,168.61,21.62105238]
[1729624377784,5.9283,168.68,168.6,6.17384]
[1729624377987,5.9283,168.68,168.61,21.62105238]
[1729624379091,15.5184,168.69,168.61,21.62105238]
[1729624379294,5.9287,168.68,168.61,21.62105238]
[1729624379984,5.9287,168.68,168.6,6.17384]
[1729624379985,5.9287,168.68,168.62,21.62105238]
[1729624381267,5.9287,168.68,168.6,6.17384]
[1729624381468,5.9287,168.68,168.61,21.62105238]
[1729624382788,5.9287,168.68,168.62,21.62105238]
[1729624383697,5.9287,168.68,168.61,21.62105238]
[1729624386399,5.9287,168.68,168.62,21.62105238]
[1729624386899,15.5184,168.69,168.64,21.62105238]
[1729624387098,15.5184,168.69,168.65,21.62105238]
[1729624387590,15.5184,168.69,168.67,21.62105238]
[1729624387790,15.8766,168.73,168.67,21.62105238]
[1729624388380,15.8766,168.73,168.68,21.62105238]
[1729624390184,15.8766,168.73,168.69,21.62105238]
[1729624397903,0.621189,168.75,168.7,21.62105238]
[1729624401604,0.621189,168.75,168.64,101.08454227]
[1729624401785,0.621189,168.75,168.65,43.776884]
[1729624401994,0.621189,168.75,168.7,21.62105238]
[1729624402296,0.621189,168.75,168.71,21.62105238]
[1729624404519,0.621189,168.75,168.65,43.776884]
[1729624404721,0.621189,168.75,168.69,21.62105238]
[1729624404926,6.547289,168.75,168.67,21.62105238]
[1729624407022,5.9263,168.74,168.67,21.62105238]
[1729624407917,5.9263,168.74,168.68,21.62105238]
[1729624408524,5.9263,168.74,168.65,20.0]
[1729624408697,5.9263,168.74,168.67,21.62105238]
[1729624408903,5.9263,168.74,168.68,21.62105238]
[1729624409404,5.9263,168.74,168.69,21.62105238]
[1729624412619,0.621189,168.75,168.69,21.62105238]
[1729624413933,0.621189,168.75,168.71,21.62105238]
[1729624415006,0.621189,168.75,168.7,21.62105238]
[1729624416009,6.547189,168.75,168.69,21.62105238]
[1729624420112,6.547189,168.75,168.65,20.0]
[1729624420113,0.621189,168.75,168.7,21.62105238]
[1729624427418,0.621189,168.75,168.74,10.81052619]
[1729624427732,0.621189,168.75,168.74,21.62105238]
[1729624432237,0.621189,168.75,168.74,45.39793638]
[1729624440256,0.621189,168.75,168.74,65.39793638]
[1729624440758,16.5042,168.82,168.75,43.776884]
[1729624441051,6.0389,168.86,168.81,21.62105238]
[1729624441052,22.5431,168.86,168.81,21.62105238]
[1729624441229,22.5431,168.86,168.82,21.62105238]
[1729624443328,16.5042,168.86,168.83,21.62105238]
[1729624443843,15.0042,168.86,168.75,121.85471675]
[1729624444043,15.0042,168.86,168.82,21.62105238]
[1729624446344,15.0042,168.86,168.72,89.54560952]
[1729624446345,5.9247,168.79,168.7,6.405]
[1729624446547,5.9256,168.76,168.7,6.405]
[1729624446750,5.9256,168.76,168.72,21.62105238]
[1729624447328,21.1961,168.77,168.72,21.62105238]
[1729624447937,21.1961,168.77,168.67,20.0]
[1729624448131,15.2708,168.77,168.72,21.62105238]
[1729624448337,30.0794,168.82,168.75,21.62105238]
[1729624448539,15.2708,168.82,168.79,21.62105238]
[1729624449027,15.2708,168.82,168.78,21.62105238]
[1729624449253,21.1943,168.82,168.77,21.62105238]
[1729624449554,15.2708,168.82,168.75,21.62105238]
[1729624449942,5.9241,168.81,168.75,21.62105238]
[1729624453555,5.9241,168.81,168.76,21.62105238]
[1729624453755,5.9241,168.81,168.7,23.776884]
[1729624453935,5.9241,168.81,168.75,21.62105238]
[1729624455062,5.9245,168.79,168.74,21.62105238]
[1729624456451,5.9248,168.78,168.73,21.62105238]
[1729624456755,5.9253,168.77,168.72,21.62105238]
[1729624456965,16.4477,168.76,168.67,8.07783275]
[1729624457268,16.4477,168.76,168.68,21.62105238]
[1729624457269,5.9268,168.73,168.68,21.62105238]
[1729624457770,5.9268,168.73,168.69,21.62105238]
[1729624457944,5.9263,168.74,168.69,21.62105238]
[1729624458144,5.9263,168.74,168.67,8.07783275]
[1729624458353,5.9263,168.74,168.69,21.62105238]
[1729624459152,5.9263,168.74,168.7,21.62105238]
[1729624461962,22.3734,168.76,168.72,21.62105238]
[1729624462961,22.3734,168.76,168.71,21.62105238]
[1729624463763,16.4477,168.76,168.71,21.62105238]
[1729624465244,16.4477,168.76,168.68,23.776884]
[1729624465450,16.4477,168.76,168.71,21.62105238]
[1729624467252,16.4477,168.76,168.72,21.62105238]
[1729624468060,16.4477,168.76,168.71,21.62105238]
[1729624470042,16.4477,168.76,168.72,21.62105238]
[1729624472057,16.4477,168.76,168.67,23.776884]
[1729624472272,16.4477,168.76,168.72,21.62105238]
[1729624474963,16.4477,168.76,168.7,21.62105238]
[1729624475164,22.3736,168.76,168.69,21.62105238]
[1729624475568,22.3736,168.76,168.71,21.62105238]
[1729624479268,16.4477,168.76,168.72,21.62105238]
[1729624479654,16.4477,168.76,168.71,21.62105238]
[1729624485385,5.926,168.75,168.7,21.62105238]
[1729624486570,5.926,168.75,168.69,20.0]
[1729624487585,5.926,168.75,168.69,41.62105238]
[1729624493570,5.9263,168.74,168.69,41.62105238]
[1729624493774,16.4477,168.76,168.67,41.62105238]
[1729624494468,5.9266,168.73,168.67,20.0]
[1729624495382,21.4425,168.7,168.63,21.62105238]
[1729624496686,21.4425,168.7,168.64,20.0]
[1729624497990,15.5147,168.7,168.64,20.0]
[1729624498165,5.928,168.69,168.64,20.0]
[1729624500093,5.928,168.69,168.63,21.62105238]
[1729624500264,5.929,168.67,168.59,18.2771225]
[1729624500468,5.929,168.67,168.59,6.17702864]
[1729624500469,15.5479,168.67,168.59,6.17702864]
[1729624500789,5.9308,168.61,168.55,21.62105238]
[1729624501088,30.2697,168.67,168.6,21.62105238]
[1729624501089,21.3766,168.67,168.6,21.62105238]
[1729624501269,21.3766,168.67,168.61,21.62105238]
[1729624501672,21.3766,168.67,168.62,21.62105238]
[1729624502687,5.9291,168.66,168.61,21.62105238]
[1729624504277,5.9291,168.66,168.57,20.0]
[1729624504474,5.9291,168.66,168.6,21.62105238]
[1729624504681,15.4479,168.67,168.57,20.0]
[1729624504884,5.9293,168.66,168.6,21.62105238]
[1729624505670,21.3766,168.67,168.61,21.62105238]
[1729624507385,21.3766,168.67,168.56,86.48420952]
[1729624507386,5.9291,168.66,168.56,86.48420952]
[1729624507574,5.9291,168.66,168.59,21.62105238]
[1729624507995,15.4479,168.67,168.59,21.62105238]
[1729624507996,5.9294,168.65,168.59,21.62105238]
[1729624510280,5.9294,168.65,168.6,21.62105238]
[1729624511198,15.4479,168.67,168.61,21.62105238]
[1729624511199,5.9291,168.66,168.61,21.62105238]
[1729624512318,21.3768,168.67,168.61,21.62105238]
[1729624512478,5.9295,168.65,168.57,20.0]
[1729624512678,15.4479,168.67,168.59,21.62105238]
[1729624512883,5.9294,168.65,168.59,21.62105238]
[1729624513084,5.9294,168.65,168.6,21.62105238]
[1729624519508,5.9294,168.65,168.59,21.62105238]
[1729624520003,5.9294,168.65,168.6,21.62105238]
[1729624520212,5.9291,168.66,168.61,21.62105238]
[1729624521308,5.9291,168.66,168.6,21.62105238]
[1729624521511,15.5479,168.67,168.55,20.0]
[1729624521698,5.9299,168.64,168.58,21.62105238]
[1729624522310,5.9302,168.63,168.57,21.62105238]
[1729624524610,5.9299,168.64,168.58,21.62105238]
[1729624526121,5.9299,168.64,168.55,20.0]
[1729624526426,5.9299,168.64,168.57,21.62105238]
[1729624526810,5.9299,168.64,168.58,21.62105238]
[1729624528494,20.1,168.66,168.55,20.0]
[1729624528799,5.9304,168.63,168.57,21.62105238]
[1729624531303,5.9304,168.63,168.58,21.62105238]
[1729624534814,15.4479,168.67,168.59,21.62105238]
[1729624535015,5.9297,168.65,168.59,21.62105238]
[1729624535218,5.9297,168.65,168.58,21.62105238]
[1729624537618,5.9297,168.65,168.59,21.62105238]
[1729624544125,5.9296,168.65,168.59,21.62105238]
[1729624544620,5.9296,168.65,168.57,7.11908925]
[1729624544811,5.9296,168.65,168.59,21.62105238]
[1729624546105,5.9296,168.65,168.54,6.5193]
[1729624546106,5.931,168.61,168.54,6.5193]
[1729624546301,5.931,168.61,168.53,6.17110438]
[1729624546302,16.5402,168.62,168.58,21.62105238]
[1729624551229,47.551,168.69,168.61,21.62105238]
[1729624551230,21.691,168.67,168.61,21.62105238]
[1729624551420,21.691,168.67,168.62,21.62105238]
[1729624551734,5.9276,168.7,168.65,21.62105238]
[1729624551931,5.928,168.69,168.64,21.62105238]
[1729624552620,5.9284,168.68,168.63,21.62105238]
[1729624552820,5.9284,168.68,168.62,21.62105238]
[1729624553415,5.9294,168.65,168.58,20.0]
[1729624553623,5.9294,168.65,168.59,21.62105238]
[1729624554045,5.9294,168.65,168.6,21.62105238]
[1729624555632,5.93,168.64,168.58,20.0]
[1729624555847,5.9303,168.63,168.53,50.229984]
[1729624556013,5.9303,168.63,168.57,21.62105238]
[1729624556453,5.9303,168.63,168.58,21.62105238]
[1729624557009,15.3836,168.67,168.58,21.62105238]
[1729624557209,5.9298,168.64,168.58,21.62105238]
[1729624560137,6.3966,168.66,168.53,6.4531]
[1729624560445,5.9303,168.63,168.57,20.0]
[1729624560628,6.3966,168.66,168.56,21.62105238]
[1729624560827,6.3966,168.66,168.53,6.4531]
[1729624561029,5.9315,168.59,168.53,6.4531]
[1729624561425,5.9312,168.6,168.53,28.07415238]
[1729624561739,5.9312,168.6,168.54,21.62105238]
[1729624562538,5.9301,168.63,168.58,21.62105238]
[1729624562945,5.9305,168.62,168.57,21.62105238]
[1729624563428,5.9305,168.62,168.56,21.62105238]
[1729624567044,5.9305,168.62,168.54,20.0]
[1729624567239,5.9305,168.62,168.56,21.62105238]
[1729624567424,5.9305,168.62,168.57,21.62105238]
[1729624568628,21.966,168.64,168.59,21.62105238]
[1729624568831,16.0361,168.64,168.59,21.62105238]
[1729624569137,16.0361,168.64,168.6,21.62105238]
[1729624570726,5.9302,168.63,168.57,41.62105238]
[1729624571049,5.9302,168.63,168.57,20.0]
[1729624572835,5.9307,168.62,168.57,20.0]
[1729624574645,5.9307,168.62,168.56,21.62105238]
[1729624575341,22.5623,168.64,168.54,21.62105238]
[1729624575548,5.9312,168.6,168.54,21.62105238]
[1729624575730,5.9315,168.6,168.53,21.62105238]
[1729624576047,20.0,168.63,168.51,6.18052052]
[1729624576222,5.9322,168.58,168.52,21.62105238]
[1729624577127,5.9322,168.58,168.53,21.62105238]
[1729624577924,20.0,168.63,168.49,23.776884]
[1729624578132,5.9315,168.59,168.54,21.62105238]
[1729624578530,15.9508,168.58,168.49,20.0]
[1729624578842,15.9508,168.58,168.49,41.62105238]
[1729624579071,5.9322,168.57,168.49,41.62105238]
[1729624579264,5.9322,168.57,168.51,20.0]
[1729624581230,5.9341,168.52,168.48,6.18129826]
[1729624581429,43.776884,168.57,168.48,6.18129826]
[1729624581430,15.9508,168.53,168.48,6.18129826]
[1729624581647,15.9508,168.53,168.44,21.62105238]
[1729624581648,5.9344,168.51,168.44,21.62105238]
[1729624581855,5.9344,168.51,168.44,27.80331884]
[1729624582353,5.9344,168.51,168.45,41.62105238]
[1729624582535,5.934,168.52,168.45,41.62105238]
[1729624582951,5.9344,168.51,168.43,20.0]
[1729624583251,15.9508,168.53,168.43,20.0]
[1729624583446,15.9508,168.53,168.45,20.0]
[1729624583649,5.9357,168.48,168.41,6.18253399]
[1729624583852,5.936,168.47,168.38,6.1452]
[1729624584151,43.876884,168.51,168.38,6.1452]
[1729624584152,5.9364,168.46,168.38,6.1452]
[1729624584357,5.9364,168.46,168.39,21.62105238]
[1729624590655,5.9364,168.46,168.39,41.62105238]
[1729624593043,5.9364,168.46,168.38,6.1452]
[1729624593044,5.937,168.44,168.34,6.17394875]
[1729624593369,5.937,168.44,168.37,21.62105238]
[1729624594263,16.4838,168.5,168.43,21.62105238]
[1729624594439,16.4838,168.5,168.46,21.62105238]
[1729624594641,16.4838,168.5,168.44,21.62105238]
[1729624594952,16.4838,168.5,168.38,34.908284]
[1729624594953,5.9356,168.48,168.41,21.62105238]
[1729624596056,5.9351,168.49,168.43,21.62105238]
[1729624596256,5.9351,168.49,168.44,21.62105238]
[1729624596454,16.4838,168.5,168.45,21.62105238]
[1729624596763,16.4838,168.5,168.46,21.62105238]
[1729624596940,16.4838,168.5,168.47,21.62105238]
[1729624598158,16.4838,168.5,168.46,21.62105238]
[1729624599374,16.4838,168.5,168.47,21.62105238]
[1729624606879,14.9838,168.5,168.47,21.62105238]
[1729624611585,5.934,168.52,168.48,21.62105238]
[1729624612280,5.9338,168.53,168.48,21.62105238]
[1729624612582,5.9338,168.53,168.49,21.62105238]
[1729624613385,21.0317,168.54,168.49,21.62105238]
[1729624613578,21.0317,168.54,168.5,21.62105238]
[1729624615288,15.0983,168.54,168.5,21.62105238]
[1729624615486,15.0983,168.54,168.51,21.62105238]
[1729624616565,15.0983,168.54,168.5,21.62105238]
[1729624617194,15.0983,168.54,168.51,21.62105238]
[1729624617384,5.933,168.55,168.53,21.62105238]
[1729624617888,5.9311,168.6,168.54,21.62105238]
[1729624618099,5.9311,168.6,168.56,21.62105238]
[1729624618398,5.9316,168.59,168.55,21.62105238]
[1729624620278,5.9316,168.59,168.54,21.62105238]
[1729624622395,15.3603,168.61,168.5,6.3132]
[1729624622605,16.162,168.58,168.45,6.4383]
[1729624622902,5.9336,168.53,168.45,21.62105238]
[1729624623093,5.9349,168.5,168.45,21.62105238]
[1729624623899,5.9349,168.5,168.46,21.62105238]
[1729624625088,5.9349,168.5,168.4,105.17373484]
[1729624625287,5.9349,168.5,168.45,21.62105238]
[1729624625800,5.9344,168.51,168.46,21.62105238]
[1729624627899,5.9344,168.51,168.45,21.62105238]
[1729624628988,5.9349,168.5,168.43,20.0]
[1729624629305,5.9349,168.5,168.45,21.62105238]
[1729624630907,20.0,168.54,168.45,21.62105238]
[1729624631088,5.9344,168.51,168.46,21.62105238]
[1729624631621,20.0,168.54,168.46,21.62105238]
[1729624631904,5.934,168.52,168.46,21.62105238]
[1729624632804,20.0,168.54,168.46,21.62105238]
[1729624633006,5.9336,168.54,168.48,21.62105238]
[1729624633181,5.9336,168.54,168.49,21.62105238]
[1729624633389,5.9336,168.54,168.5,21.62105238]
[1729624633587,5.9336,168.54,168.43,20.0]
[1729624633588,5.9336,168.54,168.49,21.62105238]
[1729624635602,16.2587,168.59,168.53,21.62105238]
[1729624635909,16.2587,168.59,168.48,86.48420952]
[1729624635910,16.2587,168.59,168.55,21.62105238]
[1729624636404,22.1903,168.59,168.55,21.62105238]
[1729624636617,22.1903,168.59,168.54,21.62105238]
[1729624637500,5.9319,168.58,168.52,21.62105238]
[1729624638802,5.9319,168.58,168.53,21.62105238]
[1729624640813,5.9329,168.55,168.49,21.62105238]
[1729624641192,5.9326,168.56,168.51,21.62105238]
[1729624642006,5.9326,168.56,168.48,20.0]
[1729624642210,5.9323,168.57,168.53,21.62105238]
[1729624642920,5.9323,168.57,168.52,21.62105238]
[1729624644823,5.9323,168.57,168.51,21.62105238]
[1729624645601,5.9323,168.57,168.52,21.62105238]
[1729624646718,16.2587,168.59,168.53,21.62105238]
[1729624647018,5.932,168.58,168.53,21.62105238]
[1729624648726,5.932,168.58,168.52,21.62105238]
[1729624652700,5.932,168.58,168.53,21.62105238]
[1729624653513,5.932,168.58,168.52,21.62105238]
[1729624654208,5.932,168.58,168.53,21.62105238]
[1729624654522,5.932,168.58,168.54,21.62105238]
[1729624654701,5.932,168.58,168.49,23.776884]
[1729624654702,15.2927,168.65,168.57,21.62105238]
[1729624654908,15.2927,168.65,168.58,21.62105238]
[1729624654909,5.9305,168.62,168.58,21.62105238]
[1729624655123,5.9305,168.62,168.57,21.62105238]
[1729624655932,5.9305,168.62,168.56,21.62105238]
[1729624660912,5.9305,168.62,168.53,6.0593]
[1729624661113,5.9305,168.62,168.56,21.62105238]
[1729624661307,5.9305,168.62,168.55,21.62105238]
[1729624661909,20.0,168.64,168.54,21.62105238]
[1729624662118,5.9315,168.6,168.52,21.62105238]
[1729624663111,5.9306,168.62,168.56,21.62105238]
[1729624663316,5.9306,168.62,168.57,21.62105238]
[1729624663606,5.93,168.64,168.59,21.62105238]
[1729624665510,15.2927,168.65,168.59,21.62105238]
[1729624665735,15.2927,168.65,168.61,21.62105238]
[1729624666622,15.2927,168.65,168.6,21.62105238]
[1729624667321,15.2927,168.65,168.56,20.0]
[1729624667504,5.93,168.64,168.58,21.62105238]
[1729624667709,5.93,168.64,168.59,21.62105238]
[1729624672133,5.93,168.64,168.58,21.62105238]
[1729624673349,5.93,168.64,168.59,21.62105238]
[1729624676649,5.9299,168.64,168.59,21.62105238]
[1729624676828,16.1793,168.69,168.62,21.62105238]
[1729624677029,5.9286,168.68,168.62,21.62105238]
[1729624680339,5.9283,168.68,168.62,21.62105238]
[1729624681139,5.9283,168.68,168.63,21.62105238]
[1729624681843,5.928,168.7,168.66,21.62105238]
[1729624682745,16.1793,168.73,168.66,21.62105238]
[1729624683048,22.6058,168.78,168.7,21.62105238]
[1729624683257,28.5307,168.78,168.71,21.62105238]
[1729624683544,22.3349,168.78,168.72,21.62105238]
[1729624684258,16.41,168.78,168.72,21.62105238]
[1729624685743,16.41,168.78,168.73,21.62105238]
[1729624685946,6.1958,168.82,168.75,21.62105238]
[1729624685947,22.1551,168.82,168.75,21.62105238]
[1729624686124,21.883,168.82,168.76,21.62105238]
[1729624687956,15.9593,168.82,168.74,21.62105238]
[1729624688124,5.9244,168.8,168.74,21.62105238]
[1729624689954,5.9238,168.81,168.76,21.62105238]
[1729624690734,5.9241,168.81,168.75,21.62105238]
[1729624691839,15.9593,168.82,168.75,21.62105238]
[1729624692046,5.9238,168.81,168.76,21.62105238]
[1729624692534,5.9238,168.81,168.72,86.48420952]
[1729624692535,5.9238,168.81,168.75,21.62105238]
[1729624693860,15.9593,168.82,168.76,21.62105238]
[1729624694034,21.8828,168.82,168.76,21.62105238]
[1729624694636,15.9593,168.82,168.77,21.62105238]
[1729624694848,5.923,168.84,168.77,21.62105238]
[1729624695255,5.923,168.84,168.74,6.4015]
[1729624695256,5.923,168.84,168.78,21.62105238]
[1729624696936,15.5986,168.86,168.8,21.62105238]
[1729624698357,5.9212,168.89,168.81,45.39793638]
[1729624699036,5.9215,168.88,168.8,21.62105238]
[1729624699239,5.9215,168.88,168.81,23.776884]
[1729624699448,5.9215,168.88,168.81,45.39793638]
[1729624700351,20.0,168.9,168.77,20.0]
[1729624700555,5.922,168.87,168.8,20.0]
[1729624701449,5.922,168.87,168.8,41.62105238]
[1729624701642,5.922,168.87,168.8,21.62105238]
[1729624703148,5.9214,168.88,168.82,21.62105238]
[1729624704350,5.9206,168.9,168.85,23.776884]
[1729624704543,22.2625,168.91,168.85,23.776884]
[1729624704744,16.342,168.91,168.85,23.776884]
[1729624705149,16.342,168.91,168.77,6.5118]
[1729624705353,16.342,168.91,168.81,20.0]
[1729624705557,5.921,168.89,168.82,21.62105238]
[1729624706843,5.921,168.89,168.82,23.776884]
[1729624708553,16.342,168.91,168.82,45.39793638]
[1729624708753,5.9207,168.9,168.83,21.62105238]
[1729624709344,5.9212,168.89,168.82,45.39793638]
[1729624710969,22.2625,168.91,168.84,45.39793638]
[1729624711677,16.342,168.91,168.83,20.0]
[1729624711973,5.9215,168.88,168.83,20.0]
[1729624712564,5.921,168.89,168.83,20.0]
[1729624714964,5.9207,168.9,168.84,23.776884]
[1729624722073,0.621189,168.92,168.87,43.776884]
[1729624722471,0.621189,168.92,168.87,65.39793638]
[1729624724182,0.621189,168.92,168.86,20.0]
[1729624724983,0.621189,168.92,168.86,41.62105238]
[1729624725694,14.667589,168.93,168.86,41.62105238]
[1729624728584,14.667589,168.93,168.87,21.62105238]
[1729624728896,14.667589,168.93,168.88,20.0]
[1729624729300,14.667589,168.93,168.87,21.62105238]
[1729624729495,14.667589,168.93,168.88,20.0]
[1729624730186,5.9183,168.97,168.88,20.0]
[1729624730382,5.9183,168.97,168.89,21.62105238]
[1729624731197,5.9183,168.97,168.88,21.62105238]
[1729624732586,21.0562,168.98,168.89,34.58741019]
[1729624732992,21.0562,168.98,168.9,21.62105238]
[1729624734092,15.1383,168.98,168.86,20.0]
[1729624734282,15.1383,168.98,168.89,45.39793638]
[1729624735588,21.0561,168.98,168.9,21.62105238]
[1729624736994,5.9182,168.97,168.9,21.62105238]
[1729624737209,5.9182,168.97,168.89,45.39793638]